fUSD/lending_fUSD_20260221
["ID","MTS","AMOUNT","RATE_DAILY","PERIOD"]
[406234807,1771647046587,-150.0,0.00040356,7]
[406234808,1771647046597,-150.0,0.00040356,7]
[406234809,1771647046606,-234.06270662,0.00040356,7]
[406234810,1771647046615,-150.0,0.00040356,7]
[406234811,1771647046623,-150.0,0.00040356,7]
[406234812,1771647046632,-150.0,0.00040356,7]
[406234813,1771647046641,-150.0,0.00040356,7]
[406234814,1771647046650,-150.0,0.00040356,7]
[406234815,1771647046659,-150.0,0.00040356,7]
[406234816,1771647046668,-150.0,0.00040356,7]
[406234817,1771647046677,-150.0,0.00040356,7]
[406234818,1771647046686,-150.0,0.00040356,7]
[406234819,1771647046695,-150.0,0.00040356,7]
[406234820,1771647046704,-150.0,0.00040356,7]
[406234821,1771647046713,-150.0,0.00040438,7]
[406234822,1771647046723,-300.0,0.0004044,2]
[406234823,1771647046732,-433.73462101,0.0004044,2]
[406234824,1771647046741,-150.0,0.00040511,7]
[406234825,1771647046750,-150.0,0.00040519,7]
[406234826,1771647046759,-150.0,0.00040543,7]
[406234827,1771647046767,-150.0,0.00040543,7]
[406234828,1771647046776,-150.0,0.0004058,7]
[406234829,1771647046785,-151.0,0.000406,120]
[406234830,1771647046794,-150.0,0.00040601,7]
[406234831,1771647046803,-277.91,0.00040612,30]
[406234832,1771647046813,-150.0,0.00040655,7]
[406234833,1771647046822,-150.0,0.00040665,7]
[406234834,1771647046831,-1422.04556703,0.00040668,28]
[406234835,1771647046840,-150.0,0.00040682,7]
[406234836,1771647046850,-151.0,0.000407,120]
[406234837,1771647046859,-27709.67182438,0.00040704,15]
[406234838,1771647046868,-150.0,0.0004073,7]
[406234839,1771647046877,-150.0,0.0004073,7]
[406234840,1771647046886,-150.0,0.00040764,7]
[406234841,1771647046895,-465.1308,0.000408,120]
[406234842,1771647046905,-1617.235,0.000408,120]
[406234843,1771647046914,-1617.23,0.000408,120]
[406234844,1771647046922,-1715.145,0.000408,30]
[406234845,1771647046931,-580.4534,0.000408,120]
[406234846,1771647046940,-1617.235,0.000408,120]
[406234847,1771647046949,-1617.23,0.000408,60]
[406234848,1771647046958,-150.0,0.00040804,7]
[406234849,1771647046967,-150.0,0.0004082,7]
[406234850,1771647046976,-150.0,0.00040845,7]
[406234851,1771647046985,-150.0,0.00040854,7]
[406234852,1771647046994,-150.0,0.00040917,7]
[406234853,1771647047002,-150.0,0.00040917,7]
[406234854,1771647047011,-2278.557,0.00040925,59]
[406234855,1771647047020,-177.134,0.00040925,59]
[406234856,1771647047029,-150.0,0.00040927,7]
[406234857,1771647047039,-222.0,0.0004093,30]
[406234858,1771647047048,-1000.0,0.0004095,120]
[406234859,1771647047057,-153.464312,0.0004095,120]
[406234860,1771647047067,-65198.0,0.0004095,60]
[406234861,1771647047076,-150.0,0.00040954,7]
[406234862,1771647047085,-150.0,0.00040974,7]
[406234863,1771647047094,-150.0,0.00040997,7]
[406234864,1771647047103,-150.0,0.00041,120]
[406234865,1771647047112,-660.80659205,0.00041,30]
[406234866,1771647047121,-150.0,0.00041008,7]
[406234867,1771647047130,-150.0,0.00041029,7]
[406234868,1771647047139,-150.0,0.0004109,7]
[406234869,1771647047148,-842.0,0.00041096,120]
[406234870,1771647047158,-300.0,0.00041096,10]
[406234871,1771647047168,-23920.44,0.00041096,120]
[406234872,1771647047177,-207.58634277,0.00041096,30]
[406234873,1771647047186,-454.95,0.00041096,120]
[406234874,1771647047196,-151.000006,0.00041096,120]
[406234875,1771647047204,-350.28037,0.00041096,2]
[406234876,1771647047213,-350.28037,0.00041096,2]
[406234877,1771647047223,-350.28037,0.00041096,2]
[406234878,1771647047232,-350.28037,0.00041096,2]
[406234879,1771647047241,-350.28037,0.00041096,2]
[406234880,1771647047251,-350.28037,0.00041096,2]
[406234881,1771647047259,-350.28037,0.00041096,2]
[406234882,1771647047268,-350.28037,0.00041096,2]
[406234883,1771647047278,-1457.075838,0.00041096,120]
[406234884,1771647047287,-1457.075838,0.00041096,120]
[406234885,1771647047296,-1457.075838,0.00041096,120]
[406234886,1771647047305,-1457.075838,0.00041096,120]
[406234887,1771647047314,-1457.075838,0.00041096,120]
[406234888,1771647047324,-1457.075838,0.00041096,120]
[406234889,1771647047333,-1457.075838,0.00041096,120]
[406234890,1771647047343,-1457.075838,0.00041096,120]
[406234891,1771647047352,-165.215076,0.00041096,120]
[406234892,1771647047361,-151.0,0.00041096,120]
[406234893,1771647047370,-151.0,0.00041096,120]
[406234894,1771647047379,-262.198795,0.00041096,120]
[406234895,1771647047389,-151.000005,0.00041096,120]
[406234896,1771647047398,-223.51177975,0.00041096,120]
[406234897,1771647047407,-151.0,0.00041096,120]
[406234898,1771647047416,-151.000002,0.00041096,120]
[406234899,1771647047426,-151.0,0.00041096,7]
[406234900,1771647047435,-218.979802,0.00041096,7]
[406234901,1771647047447,-151.0,0.00041096,120]
[406234902,1771647047458,-151.0,0.00041096,31]
[406234903,1771647047467,-151.0,0.00041096,120]
[406234904,1771647047476,-523.84,0.000411,14]
[406234905,1771647047485,-150.0,0.00041103,30]
[406234906,1771647047494,-150.0,0.00041103,30]
[406234907,1771647047503,-150.0,0.00041103,30]
[406234908,1771647047512,-150.0,0.00041103,30]
[406234909,1771647047521,-150.0,0.00041129,30]
[406234910,1771647047534,-150.0,0.00041171,30]
[406234911,1771647047543,-150.0,0.00041253,30]
[406234912,1771647047552,-150.0,0.00041253,30]
[406234913,1771647047563,-150.0,0.00041253,30]
[406234914,1771647047572,-150.0,0.00041284,30]
[406234915,1771647047581,-150.0,0.0004129,30]
[406234916,1771647047591,-150.0,0.0004129,30]
[406234917,1771647047600,-1500.0,0.000413,14]
[406234918,1771647047609,-151.0,0.000413,120]
[406234919,1771647047618,-523.84,0.000413,14]
[406234920,1771647047627,-210.09,0.000413,30]
[406234921,1771647047639,-150.0,0.00041334,30]
[406234922,1771647047648,-150.0,0.00041352,30]
[406234923,1771647047657,-842.0,0.0004137,120]
[406234924,1771647047666,-150.0,0.00041416,30]
[406234925,1771647047675,-150.0,0.00041438,30]
[406234926,1771647047684,-5000.0,0.00041468,7]
[406234927,1771647047694,-5000.0,0.00041468,4]
[406234928,1771647047703,-5000.0,0.00041468,3]
[406234929,1771647047712,-5000.0,0.00041468,4]
[406234930,1771647047721,-150.0,0.00041477,30]
[406234931,1771647047730,-150.0,0.00041477,30]
[406234932,1771647047739,-150.0,0.00041477,30]
[406234933,1771647047748,-150.0,0.00041497,30]
[406234934,1771647047757,-151.0,0.000415,120]
[406234935,1771647047767,-287.93473399,0.000415,120]
[406234936,1771647047775,-150.0,0.00041552,30]
[406234937,1771647047784,-150.0,0.00041579,30]
[406234938,1771647047793,-150.0,0.00041593,30]
[406234939,1771647047802,-150.0,0.00041637,30]
[406234940,1771647047811,-842.0,0.00041644,120]
[406234941,1771647047820,-150.0,0.0004166,30]
[406234942,1771647047829,-150.0,0.00041664,30]
[406234943,1771647047838,-150.0,0.00041664,30]
[406234944,1771647047850,-150.0,0.00041701,30]
[406234945,1771647047859,-150.0,0.00041742,30]
[406234946,1771647047868,-150.0,0.00041748,30]
[406234947,1771647047877,-925.5,0.00041783,30]
[406234948,1771647047886,-1229.12531447,0.000418,120]
[406234949,1771647047895,-150.0,0.00041823,30]
[406234950,1771647047904,-150.0,0.00041851,30]
[406234951,1771647047913,-150.0,0.00041851,30]
[406234952,1771647047922,-150.0,0.00041851,30]
[406234953,1771647047930,-150.0,0.00041851,30]
[406234954,1771647047939,-150.0,0.00041851,30]
[406234955,1771647047949,-150.0,0.00041851,30]
[406234956,1771647047958,-151.0,0.000419,120]
[406234957,1771647047967,-150.0,0.00041902,30]
[406234958,1771647047976,-150.0,0.00041905,30]
[406234959,1771647047985,-231.08648442,0.00041917,120]
[406234960,1771647047994,-842.0,0.00041918,120]
[406234961,1771647048003,-600.0,0.00041918,10]
[406234962,1771647048012,-150.0,0.00041925,30]
[406234963,1771647048021,-150.0,0.00041987,30]
[406234964,1771647048030,-150.0,0.00042,120]
[406234965,1771647048040,-2592.486273,0.00042,120]
[406234966,1771647048049,-300.0,0.00042,120]
[406234967,1771647048059,-500.0,0.00042,120]
[406234968,1771647048068,-150.0,0.00042038,30]
[406234969,1771647048077,-150.0,0.00042038,30]
[406234970,1771647048086,-150.0,0.00042057,30]
[406234971,1771647048095,-150.0,0.00042068,30]
[406234972,1771647048104,-392.265,0.000421,120]
[406234973,1771647048113,-1866.5827,0.000421,90]
[406234974,1771647048123,-277.315078,0.000421,90]
[406234975,1771647048132,-12805.913,0.000421,90]
[406234976,1771647048141,-12805.91,0.000421,90]
[406234977,1771647048151,-1468.789,0.000421,90]
[406234978,1771647048160,-1468.79,0.000421,90]
[406234979,1771647048170,-364.6714,0.000421,90]
[406234980,1771647048179,-1201.89,0.000421,30]
[406234981,1771647048188,-1406.79,0.0004212,120]
[406234982,1771647048198,-150.0,0.0004215,30]
[406234983,1771647048207,-150.0,0.0004215,30]
[406234984,1771647048216,-150.0,0.0004215,30]
[406234985,1771647048226,-150.0,0.00042173,120]
[406234986,1771647048245,-842.0,0.00042192,120]
[406234987,1771647048255,-151.0,0.000422,120]
[406234988,1771647048264,-398.13,0.000422,14]
[406234989,1771647048273,-150.0,0.00042211,30]
[406234990,1771647048283,-150.0,0.00042224,30]
[406234991,1771647048292,-150.0,0.00042224,30]
[406234992,1771647048302,-150.0,0.00042231,30]
[406234993,1771647048312,-150.0,0.00042278,30]
[406234994,1771647048322,-398.04,0.000423,14]
[406234995,1771647048331,-210.09,0.000423,30]
[406234996,1771647048341,-65198.0,0.000423,60]
[406234997,1771647048351,-150.0,0.00042313,30]
[406234998,1771647048361,-150.0,0.00042349,30]
[406234999,1771647048371,-200.0,0.00042353,120]
[406235000,1771647048380,-150.0,0.00042366,30]
[406235001,1771647048390,-150.0,0.00042374,30]
[406235002,1771647048400,-150.0,0.00042394,30]
[406235003,1771647048410,-150.0,0.00042411,30]
[406235004,1771647048420,-150.0,0.00042411,30]
[406235005,1771647048430,-1038.2,0.00042414,30]
[406235006,1771647048440,-150.0,0.00042449,30]
[406235007,1771647048450,-842.0,0.00042466,120]
[406235008,1771647048463,-150.0,0.00042476,30]
[406235009,1771647048473,-665.6588797,0.000425,120]
[406235010,1771647048483,-150.0,0.00042521,30]
[406235011,1771647048493,-2000.0,0.00042542,4]
[406235012,1771647048502,-6000.0,0.00042542,4]
[406235013,1771647048512,-150.0,0.00042557,30]
[406235014,1771647048522,-150.0,0.00042598,30]
[406235015,1771647048536,-150.0,0.00042598,30]
[406235016,1771647048546,-150.0,0.00042598,30]
[406235017,1771647048556,-150.0,0.00042598,30]
[406235018,1771647048566,-150.0,0.00042598,30]
[406235019,1771647048576,-150.0,0.00042598,30]
[406235020,1771647048585,-150.0,0.00042598,30]
[406235021,1771647048594,-151.0,0.000426,120]
[406235022,1771647048608,-523.84,0.000426,14]
[406235023,1771647048618,-150.0,0.00042639,30]
[406235024,1771647048628,-150.0,0.00042656,120]
[406235025,1771647048639,-150.0,0.00042675,30]
[406235026,1771647048650,-150.0,0.00042684,120]
[406235027,1771647048660,-150.0,0.00042689,120]
[406235028,1771647048670,-150.0,0.00042701,120]
[406235029,1771647048680,-150.0,0.0004272,30]
[406235030,1771647048689,-500.0,0.00042739,60]
[406235031,1771647048699,-842.0,0.0004274,120]
[406235032,1771647048710,-161.20688867,0.0004274,10]
[406235033,1771647048719,-150.0,0.00042747,30]
[406235034,1771647048729,-150.0,0.00042785,30]
[406235035,1771647048739,-150.0,0.00042785,30]
[406235036,1771647048748,-150.0,0.00042788,120]
[406235037,1771647048758,-171.41831138,0.000428,90]
[406235038,1771647048768,-276.3,0.000428,60]
[406235039,1771647048778,-523.84,0.000428,14]
[406235040,1771647048788,-150.0,0.00042802,30]
[406235041,1771647048798,-150.0,0.00042822,30]
[406235042,1771647048811,-150.0,0.0004283,30]
[406235043,1771647048821,-150.0,0.00042847,30]
[406235044,1771647048831,-150.0,0.00042883,30]
[406235045,1771647048841,-2324.01,0.000429,120]
[406235046,1771647048851,-166.88500489,0.000429,120]
[406235047,1771647048861,-166.88500489,0.000429,120]
[406235048,1771647048871,-150.0,0.00042911,120]
[406235049,1771647048881,-150.0,0.00042918,30]
[406235050,1771647048891,-875.05329855,0.00042927,120]
[406235051,1771647048900,-222.0,0.0004295,30]
[406235052,1771647048910,-150.0,0.00042959,120]
[406235053,1771647048920,-150.0,0.00042965,30]
[406235054,1771647048930,-150.0,0.00042972,30]
[406235055,1771647048939,-150.0,0.00042972,30]
[406235056,1771647048949,-150.0,0.00042985,30]
[406235057,1771647048958,-333.11816214,0.00042998,30]
[406235058,1771647048968,-150.0,0.00043,120]
[406235059,1771647048977,-151.0,0.00043,120]
[406235060,1771647048987,-480.8487454,0.00043,120]
[406235061,1771647048997,-664.67408636,0.00043,120]
[406235062,1771647049010,-160.0,0.00043,120]
[406235063,1771647049020,-842.0,0.00043014,120]
[406235064,1771647049030,-150.0,0.00043021,120]
[406235065,1771647049040,-150.0,0.00043044,120]
[406235066,1771647049050,-5236.95527,0.00043046,30]
[406235067,1771647049061,-150.0,0.00043046,30]
[406235068,1771647049071,-150.0,0.00043046,30]
[406235069,1771647049081,-150.0,0.00043046,30]
[406235070,1771647049091,-160.0,0.00043068,120]
[406235071,1771647049317,-150.0,0.00043103,120]
[406235072,1771647049360,-150.0,0.00043128,30]
[406235073,1771647049370,-150.0,0.00043139,30]
[406235074,1771647049380,-150.0,0.00043159,30]
[406235075,1771647049389,-150.0,0.00043159,30]
[406235076,1771647049399,-151.0,0.000432,120]
[406235077,1771647049408,-150.0,0.00043209,30]
[406235078,1771647049418,-150.0,0.00043271,30]
[406235079,1771647049427,-150.0,0.0004328,120]
[406235080,1771647049436,-842.0,0.00043288,120]
[406235081,1771647049446,-150.0,0.00043291,30]
[406235082,1771647049455,-150.0,0.00043294,30]
[406235083,1771647049465,-7976.491424,0.000433,2]
[406235084,1771647049475,-150.0,0.00043308,120]
[406235085,1771647049487,-150.0,0.00043343,120]
[406235086,1771647049498,-150.0,0.00043345,30]
[406235087,1771647049510,-150.0,0.00043345,30]
[406235088,1771647049519,-150.0,0.00043345,30]
[406235089,1771647049533,-150.0,0.00043345,30]
[406235090,1771647049542,-150.0,0.00043345,30]
[406235091,1771647049552,-150.0,0.00043345,30]
[406235092,1771647049563,-150.0,0.00043373,30]
[406235093,1771647049575,-150.0,0.00043394,24]
[406235094,1771647049586,-150.0,0.00043394,24]
[406235095,1771647049595,-165.0,0.00043394,24]
[406235096,1771647049606,-1601.633,0.000434,90]
[406235097,1771647049615,-1601.633,0.000434,90]
[406235098,1771647049624,-1601.63,0.000434,120]
[406235099,1771647049634,-150.0,0.00043414,120]
[406235100,1771647049643,-150.0,0.00043444,120]
[406235101,1771647049652,-150.0,0.00043448,30]
[406235102,1771647049663,-150.0,0.00043451,30]
[406235103,1771647049672,-4320.3494569,0.00043451,30]
[406235104,1771647049682,-150.0,0.00043451,30]
[406235105,1771647049691,-1180.30197326,0.00043451,30]
[406235106,1771647049701,-150.0,0.00043451,30]
[406235107,1771647049711,-1803.8156126,0.00043451,30]
[406235108,1771647049723,-150.0,0.00043454,30]
[406235109,1771647049736,-150.0,0.00043495,30]
[406235110,1771647049745,-151.0,0.00043496,90]
[406235111,1771647049755,-150.0,0.00043498,120]
[406235112,1771647049764,-1408.54,0.000435,90]
[406235113,1771647049773,-150.0,0.00043516,120]
[406235114,1771647049783,-150.0,0.00043532,30]
[406235115,1771647049792,-150.0,0.00043532,30]
[406235116,1771647049802,-150.0,0.00043536,30]
[406235117,1771647049811,-150.0,0.00043559,30]
[406235118,1771647049821,-842.0,0.00043562,120]
[406235119,1771647049830,-150.0,0.00043585,120]
[406235120,1771647049839,-210.09,0.000436,30]
[406235121,1771647049848,-150.0,0.00043603,30]
[406235122,1771647049858,-150.0,0.00043617,30]
[406235123,1771647049867,-150.0,0.00043637,120]
[406235124,1771647049876,-150.0,0.00043644,30]
[406235125,1771647049885,-65198.0,0.0004365,60]
[406235126,1771647049894,-150.0,0.00043672,120]
[406235127,1771647049904,-150.0,0.00043699,30]
[406235128,1771647049913,-151.0,0.000437,120]
[406235129,1771647049923,-150.0,0.00043719,30]
[406235130,1771647049932,-150.0,0.00043719,30]
[406235131,1771647049942,-150.0,0.00043719,30]
[406235132,1771647049951,-150.0,0.00043758,30]
[406235133,1771647049960,-150.0,0.00043777,120]
[406235134,1771647049970,-150.0,0.0004378,30]
[406235135,1771647049979,-150.0,0.00043781,120]
[406235136,1771647049989,-200.0,0.00043795,120]
[406235137,1771647049999,-300.210843,0.00043795,117]
[406235138,1771647050009,-151.0,0.000438,120]
[406235139,1771647050018,-2000.0,0.000438,2]
[406235140,1771647050027,-2877.0,0.00043802,16]
[406235141,1771647050036,-2836.0,0.00043806,16]
[406235142,1771647050045,-234.563943,0.00043808,120]
[406235143,1771647050055,-399.443943,0.00043808,120]
[406235144,1771647050064,-150.0,0.00043814,120]
[406235145,1771647050073,-500.0,0.00043835,120]
[406235146,1771647050082,-500.0,0.00043835,60]
[406235147,1771647050091,-842.0,0.00043836,120]
[406235148,1771647050101,-173.51452037,0.00043836,2]
[406235149,1771647050110,-151.0,0.00043836,120]
[406235150,1771647050120,-174.280353,0.00043836,120]
[406235151,1771647050129,-164.23421855,0.00043836,5]
[406235152,1771647050139,-473.34,0.00043836,120]
[406235153,1771647050148,-150.0,0.00043836,120]
[406235154,1771647050157,-150.0,0.00043836,120]
[406235155,1771647050167,-235.41177142,0.00043836,120]
[406235156,1771647050177,-500.0,0.00043836,120]
[406235157,1771647050187,-500.0,0.00043836,120]
[406235158,1771647050197,-150.0,0.00043836,120]
[406235159,1771647050206,-258.69527313,0.00043836,120]
[406235160,1771647050215,-150.0,0.00043836,120]
[406235161,1771647050224,-251.07712727,0.00043836,120]
[406235162,1771647050234,-150.0,0.00043836,120]
[406235163,1771647050243,-157.47905521,0.00043836,120]
[406235164,1771647050252,-246.47014359,0.00043836,120]
[406235165,1771647050261,-500.0,0.00043836,120]
[406235166,1771647050271,-150.0,0.00043836,120]
[406235167,1771647050280,-500.0,0.00043836,120]
[406235168,1771647050292,-173.34358225,0.00043836,120]
[406235169,1771647050302,-500.0,0.00043836,120]
[406235170,1771647050312,-503.4852638,0.00043836,120]
[406235171,1771647050321,-500.0,0.00043836,120]
[406235172,1771647050330,-500.0,0.00043836,120]
[406235173,1771647050339,-500.0,0.00043836,120]
[406235174,1771647050349,-500.0,0.00043836,120]
[406235175,1771647050358,-500.0,0.00043836,120]
[406235176,1771647050368,-500.0,0.00043836,120]
[406235177,1771647050379,-500.0,0.00043836,120]
[406235178,1771647050388,-500.0,0.00043836,120]
[406235179,1771647050397,-500.0,0.00043836,120]
[406235180,1771647050406,-500.0,0.00043836,120]
[406235181,1771647050416,-461.81596152,0.00043836,120]
[406235182,1771647050425,-500.0,0.00043836,120]
[406235183,1771647050434,-150.0,0.00043836,2]
[406235184,1771647050444,-500.0,0.00043836,120]
[406235185,1771647050453,-500.0,0.00043836,120]
[406235186,1771647050462,-500.0,0.00043836,120]
[406235187,1771647050471,-505.1733995,0.00043836,120]
[406235188,1771647050480,-500.0,0.00043836,120]
[406235189,1771647050490,-500.0,0.00043836,120]
[406235190,1771647050499,-500.0,0.00043836,120]
[406235191,1771647050509,-500.0,0.00043836,120]
[406235192,1771647050518,-500.0,0.00043836,120]
[406235193,1771647050530,-500.0,0.00043836,120]
[406235194,1771647050539,-500.0,0.00043836,120]
[406235195,1771647050548,-500.0,0.00043836,120]
[406235196,1771647050557,-500.0,0.00043836,120]
[406235197,1771647050567,-500.0,0.00043836,120]
[406235198,1771647050576,-500.0,0.00043836,120]
[406235199,1771647050586,-500.0,0.00043836,120]
[406235200,1771647050595,-500.0,0.00043836,120]
[406235201,1771647050605,-500.0,0.00043836,120]
[406235202,1771647050614,-500.0,0.00043836,120]
[406235203,1771647050623,-500.0,0.00043836,120]
[406235204,1771647050632,-500.0,0.00043836,120]
[406235205,1771647050642,-500.0,0.00043836,120]
[406235206,1771647050651,-487.06167529,0.00043836,120]
[406235207,1771647050660,-150.0,0.00043844,30]
[406235208,1771647050669,-150.0,0.00043851,120]
[406235209,1771647050679,-150.0,0.00043862,30]
[406235210,1771647050690,-150.0,0.00043868,120]
[406235211,1771647050700,-268.62,0.000439,14]
[406235212,1771647050711,-161.90624843,0.000439,120]
[406235213,1771647050721,-600.0,0.000439,16]
[406235214,1771647050730,-150.0,0.00043906,30]
[406235215,1771647050739,-150.0,0.00043906,30]
[406235216,1771647050748,-150.0,0.00043912,30]
[406235217,1771647050758,-2924.16558,0.0004393,7]
[406235218,1771647050766,-150.0,0.00043943,30]
[406235219,1771647050776,-150.0,0.00043943,30]
[406235220,1771647050785,-150.0,0.00043943,30]
[406235221,1771647050794,-150.0,0.00043957,120]
[406235222,1771647050803,-350.0,0.00043964,2]
[406235223,1771647050813,-500.0,0.00043972,120]
[406235224,1771647050822,-500.0,0.00043972,120]
[406235225,1771647050831,-500.0,0.00043972,120]
[406235226,1771647050841,-291.56268661,0.00043972,120]
[406235227,1771647050850,-385.0,0.00043994,2]
[406235228,1771647050859,-28778.69179754,0.00044,120]
[406235229,1771647050868,-333.0,0.00044,10]
[406235230,1771647050877,-2688.0,0.00044,120]
[406235231,1771647050886,-150.0,0.00044,120]
[406235232,1771647050895,-3091.3273542,0.00044,2]
[406235233,1771647050905,-290.23,0.00044,120]
[406235234,1771647050915,-2645.30804669,0.00044,120]
[406235235,1771647050926,-300.0,0.00044,120]
[406235236,1771647050937,-150.0,0.00044,30]
[406235237,1771647050948,-150.0,0.00044025,30]
[406235238,1771647050958,-385.0,0.00044041,2]
[406235239,1771647050967,-150.0,0.00044067,30]
[406235240,1771647050976,-150.0,0.00044069,120]
[406235241,1771647050985,-150.0,0.00044093,30]
[406235242,1771647050995,-150.0,0.00044093,30]
[406235243,1771647051005,-150.0,0.00044093,30]
[406235244,1771647051014,-150.0,0.00044093,30]
[406235245,1771647051023,-150.0,0.00044106,30]
[406235246,1771647051033,-842.0,0.0004411,120]
[406235247,1771647051042,-151.0,0.0004411,90]
[406235248,1771647051053,-151.0,0.0004411,90]
[406235249,1771647051063,-194.156866,0.0004411,90]
[406235250,1771647051072,-150.0,0.00044111,120]
[406235251,1771647051082,-150.0,0.00044113,120]
[406235252,1771647051091,-150.0,0.00044122,120]
[406235253,1771647051101,-1001.66697397,0.0004413,10]
[406235254,1771647051110,-150.0,0.00044131,120]
[406235255,1771647051119,-150.0,0.00044132,120]
[406235256,1771647051128,-999.0,0.00044136,120]
[406235257,1771647051137,-385.0,0.00044143,2]
[406235258,1771647051147,-150.0,0.00044148,120]
[406235259,1771647051157,-884.16,0.0004415,120]
[406235260,1771647051167,-150.0,0.00044165,120]
[406235261,1771647051178,-150.0,0.00044167,30]
[406235262,1771647051188,-500.0,0.0004417,3]
[406235263,1771647051198,-1000.0,0.0004417,3]
[406235264,1771647051208,-150.0,0.00044174,120]
[406235265,1771647051218,-385.0,0.00044178,2]
[406235266,1771647051227,-150.0,0.0004418,120]
[406235267,1771647051237,-150.0,0.00044187,120]
[406235268,1771647051247,-150.0,0.00044188,30]
[406235269,1771647051256,-150.0,0.00044196,120]
[406235270,1771647051266,-150.0,0.00044199,30]
[406235271,1771647051275,-175.50156665,0.000442,120]
[406235272,1771647051285,-265.10663543,0.000442,120]
[406235273,1771647051294,-196.54985673,0.000442,120]
[406235274,1771647051303,-195.98208036,0.000442,120]
[406235275,1771647051313,-199.8878373,0.000442,120]
[406235276,1771647051323,-167.97411281,0.000442,120]
[406235277,1771647051332,-170.65526646,0.000442,120]
[406235278,1771647051341,-174.90129163,0.000442,120]
[406235279,1771647051350,-150.0,0.00044215,120]
[406235280,1771647051360,-150.0,0.00044222,30]
[406235281,1771647051370,-267.0,0.00044222,24]
[406235282,1771647051380,-150.0,0.00044228,120]
[406235283,1771647051390,-200.0,0.0004424,120]
[406235284,1771647051400,-150.0,0.00044242,30]
[406235285,1771647051410,-2148.56,0.00044244,120]
[406235286,1771647051420,-150.0,0.00044269,30]
[406235287,1771647051430,-150.0,0.0004428,30]
[406235288,1771647051439,-150.0,0.0004428,30]
[406235289,1771647051448,-500.0,0.00044281,120]
[406235290,1771647051457,-500.0,0.00044281,120]
[406235291,1771647051466,-150.0,0.00044281,120]
[406235292,1771647051475,-381.93010573,0.000443,15]
[406235293,1771647051484,-582.96406686,0.00044318,10]
[406235294,1771647051493,-150.0,0.0004433,120]
[406235295,1771647051503,-150.0,0.00044342,30]
[406235296,1771647051512,-150.0,0.00044343,120]
[406235297,1771647051521,-150.0,0.00044349,120]
[406235298,1771647051535,-150.0,0.00044351,30]
[406235299,1771647051544,-150.0,0.00044365,120]
[406235300,1771647051554,-500.0,0.0004437,3]
[406235301,1771647051564,-500.0,0.0004437,3]
[406235302,1771647051573,-1000.0,0.0004437,3]
[406235303,1771647051583,-1000.0,0.0004437,3]
[406235304,1771647051593,-150.0,0.00044372,120]
[406235305,1771647051603,-366.09679408,0.00044373,15]
[406235306,1771647051613,-873.04835075,0.00044373,7]